[Event "15th Arad Open 2022"]
[Site "Arad"]
[Date "2022.08.11"]
[Round "5.5"]
[White "Ciocani, Iosif"]
[Black "Secheres, Adrian-Simion"]
[Result "0-1"]
[ECO "C55"]
[WhiteElo "2012"]
[BlackElo "2360"]
[Annotator "TA"]
[PlyCount "82"]
[EventDate "2022.08.08"]
[EventType "swiss"]
[EventCountry "ROU"]
[SourceTitle "playchess.com"]
[Source "ChessBase"]
[SourceQuality "1"]
[TimeControl "5400+30"]

{[%evp 11,82,11,20,16,29,32,31,27,27,13,14,13,17,14,20,18,33,10,10,16,23,0,0,0,0,0,0,0,0,0,0,0,0,0,0,-22,-20,-74,-43,-89,-101,-107,-114,-270,-149,-183,-150,-150,0,-6,-20,-12,-27,-83,-78,-79,-86,-670,-637,-1072,-1064,-5297,-5297,-1368,-1296,-29989,-29990,-29990,-29983,-29988,-29984,-29983,-29984]} 1. e4 {[%emt 0:01:33]} e5 {[%emt 0:00:59]} 2. Nf3 {[%emt 0:00:10]} Nc6 {[%emt 0:00:25]} 3. Bc4 {[%emt 0:00:19]} Nf6 {[%emt 0:00:50]} 4. d3 {[%emt 0:00:57]} Be7 {[%emt 0:00:32]} 5. O-O {[%emt 0:01:31]} O-O {[%emt 0:00:12]} 6. Nc3 {[%emt 0:02:34]} d6 {[%emt 0:01:48]} 7. a4 {[%emt 0:00:47] 7.a3 is setting a new trend. C55: Two Knights: 4 d3, 4 d4 exd4 5 e5 and Max Lange Attack.} Na5 {[%emt 0:01:37]} 8. Ba2 {[%emt 0:00:36]} c5 {[%emt 1:28:07]} 9. Bg5 {[%emt 0:00:38] White is slightly better.} Nc6 {[%emt 0:00:00]} 10. Bxf6 {[%emt 0:00:49]} Bxf6 {[%emt 0:00:00]} 11. Nd5 {[%emt 0:00:55]} Be6 {[%emt 0:00:00] [#]} 12. Qd2 $146 {[%emt 0:04:15]} ({Predecessor:} 12. c3) 12... Rb8 {[%emt 0:00:00]} 13. c3 {[%emt 0:10:34]} h6 {[%emt 0:00:00]} 14. b4 {[%emt 0:07:50]} cxb4 {[%emt 0:00:00]} 15. cxb4 {[%emt 0:00:41]} Bg5 {[%emt 0:00:00]} 16. Nxg5 {[%emt 0:05:28]} Qxg5 {[%emt 0:00:00]} 17. f4 {[%emt 0:05:15]} exf4 {[%emt 0:00:00]} 18. Rxf4 {[%emt 0:01:18]} Nd4 {[%emt 0:00:00][%cal Od4f3] And now ...Nf3+! would win.} 19. Raf1 {[%emt 0:08:06] Prevents Nf3+.} Kh7 {[%emt 0:00:00]} 20. Ne3 {[%emt 0:46:14]} Rfc8 {[%emt 0:00:00]} 21. Bc4 {[%emt 0:00:00]} a6 {[%emt 0:00:00]} 22. Bxe6 {[%emt 0:00:00]} fxe6 {[%emt 0:00:00]} 23. h3 {[%emt 0:01:30]} b5 {[%emt 0:00:00]} 24. a5 {[%emt 0:00:00]} (24. axb5 $11 axb5 25. Rg4) 24... Rc7 {[%emt 0:00:00]} 25. e5 {[%emt 0:00:00]} (25. h4 $15 {was preferrable.} Qh5 26. Kh2) 25... dxe5 $17 {[%emt 0:00:00]} ({Resist} 25... Qxe5 26. Re4 Nb3 27. Qf2 $16) 26. Rg4 {[%emt 0:00:00]} Qe7 {[%emt 0:00:00] Black is more active.} 27. Qe1 $2 {[%emt 0:00:00] [#]} (27. Re4 $17 {was called for.}) 27... Rf8 {[%emt 0:00:00]} (27... Rc1 $3 $19 {[%mdl 512]} 28. Nd1 (28. Rxg7+ $2 Qxg7 29. Qxc1 Ne2+ 30. Kh1 Nxc1 $19) (28. Qd2 Rbc8) 28... Rf8 29. Rxf8 Qxf8) 28. Kh2 {[%emt 0:00:00]} Rxf1 {[%emt 0:01:56]} 29. Nxf1 {[%emt 0:00:00] [#]} Qf6 {[%emt 0:00:12]} ({Black should play} 29... h5 $1 $17 {[%cal Rh5g4]} 30. Qe4+ Kg8) 30. Ng3 $1 $11 {[%emt 0:00:00]} Rc2 {[%emt 0:07:04]} 31. Qe4+ {[%emt 0:00:00]} g6 $1 {[%emt 0:00:26] aiming for ...Nf3+.} 32. Qb7+ {[%emt 0:00:04]} (32. h4 $1 $11) 32... Qg7 $17 {[%emt 0:00:08]} 33. Qe4 {[%emt 0:00:15]} Qf7 $36 {[%emt 0:00:38][%mdl 2048] White must now prevent ...Nf3+. Black is on the roll.} 34. h4 $2 {[%emt 0:00:18][%mdl 8192]} (34. Kh1 $17) 34... h5 $19 {[%emt 0:01:05]} 35. Nxh5 {[%emt 0:00:59]} Re2 {[%emt 0:00:07]} 36. Nf6+ {[%emt 0:02:02]} Qxf6 {[%emt 0:00:06]} 37. Qb7+ {[%emt 0:00:02]} Kh6 {[%emt 0:00:59] ( -> ...Qf1)} 38. h5 {[%emt 0:00:11]} gxh5 {[%emt 0:00:50] Black mates.} 39. Rg3 {[%emt 0:00:09]} Nf5 {[%emt 0:00:17]} 40. Rh3 {[%emt 0:00:00]} Qg5 {[%emt 0:00:00]} 41. Qf3 {[%emt 0:00:00]} Qf4+ {[%emt 0:00:00] Weighted Error Value: White=0.78/Black=0.16 (very precise)} 0-1

[Event "15th Arad Open 2022"]
[Site "Arad"]
[Date "2022.08.11"]
[Round "5.6"]
[White "Ardeleanu, Alin"]
[Black "Anghel, Iulian-Mihai"]
[Result "1/2-1/2"]
[ECO "C65"]
[WhiteElo "2290"]
[BlackElo "2015"]
[Annotator "TA"]
[PlyCount "37"]
[EventDate "2022.08.08"]
[EventType "swiss"]
[EventCountry "ROU"]
[SourceTitle "playchess.com"]
[Source "ChessBase"]
[SourceQuality "1"]
[TimeControl "5400+30"]

{[%evp 9,37,16,23,16,29,14,8,13,18,13,14,-3,37,8,16,13,20,10,16,-9,-29,-16,0,0,13,12,20,6,0,-45]} 1. e4 {[%emt 0:09:57]} e5 {[%emt 0:00:00]} 2. Nf3 {[%emt 0:00:37]} Nc6 {[%emt 0:00:00]} 3. Bb5 {[%emt 0:01:41]} Nf6 {[%emt 0:00:04]} 4. d3 {[%emt 0:00:44]} Bc5 {[%emt 0:00:12]} 5. Bxc6 {[%emt 0:00:38]} dxc6 {[%emt 0:00:47]} 6. O-O {[%emt 0:06:30] C65: Ruy Lopez: Berlin Defence (3...Nf6), unusual lines and 4 0-0 Bc5.} Qe7 {[%emt 0:06:41]} 7. Nbd2 {[%emt 0:06:46]} Bg4 {[%emt 0:05:54]} 8. h3 {[%emt 0:12:29]} Bh5 {[%emt 0:00:42]} 9. Nc4 {[%emt 0:09:59]} Nd7 {[%emt 0:11:50]} 10. a3 {[%emt 0:13:18]} Bd6 {[%emt 0:07:25]} 11. b4 {[%emt 0:06:50]} O-O {[%emt 0:05:27]} 12. g4 {[%emt 0:06:24]} Bg6 {[%emt 0:00:09] [#]} 13. Kg2 $146 {[%emt 0:01:07]} ({Predecessor:} 13. Bb2 Qe6 14. Nh4 b5 15. Ne3 a5 16. Qd2 axb4 17. axb4 c5 18. bxc5 Nxc5 19. Nef5 {0-1 (71) Le,Q (2713)-Karjakin,S (2754) Bucharest 2019}) 13... c5 {[%emt 0:04:46]} 14. Bg5 {[%emt 0:02:45]} f6 {[%emt 0:02:12]} 15. Bd2 {[%emt 0:00:24]} cxb4 {[%emt 0:08:03] The position is equal.} 16. Nxd6 {[%emt 0:00:14]} Qxd6 {[%emt 0:02:06]} 17. axb4 {[%emt 0:00:11]} c5 {[%emt 0:04:02]} 18. bxc5 {[%emt 0:01:39]} Nxc5 {[%emt 0:00:18]} 19. Bb4 {[%emt 0:01:30] A rather calm draw.  Weighted Error Value: White=0.09 (flawless) /Black=0.06 (flawless)} 1/2-1/2

[Event "15th Arad Open 2022"]
[Site "Arad"]
[Date "2022.08.11"]
[Round "5.7"]
[White "Magold, Filip"]
[Black "Matasaru, Stephanie"]
[Result "1-0"]
[ECO "B55"]
[WhiteElo "2247"]
[BlackElo "1885"]
[Annotator "TA"]
[PlyCount "55"]
[EventDate "2022.08.08"]
[EventType "swiss"]
[EventCountry "ROU"]
[SourceTitle "playchess.com"]
[Source "ChessBase"]
[SourceQuality "1"]
[TimeControl "5400+30"]

{[%evp 10,55,57,43,38,29,68,73,68,61,64,59,73,68,96,92,107,55,55,43,59,71,79,46,47,40,44,41,47,45,58,46,77,70,114,78,103,114,168,159,178,156,196,204,308,347,522,498]} 1. e4 {[%emt 0:00:17]} c5 {[%emt 0:00:11]} 2. Nf3 {[%emt 0:00:11]} d6 {[%emt 0:00:05]} 3. d4 {[%emt 0:00:04]} cxd4 {[%emt 0:00:04]} 4. Nxd4 {[%emt 0:00:03]} Nf6 {[%emt 0:00:06]} 5. f3 {[%emt 0:00:09]} g6 {[%emt 0:03:11]} 6. c4 {[%emt 0:00:12]} Bg7 {[%emt 0:00:45] B55: Sicilian: 2...d6 3 d4 cxd4 4 Nxd4 Nf6 5 f3.} 7. Nc3 {[%emt 0:00:10]} h5 {[%emt 0:02:05]} 8. Be3 {[%emt 0:01:47]} Nc6 {[%emt 0:00:58] White is better.} 9. Be2 {[%emt 0:00:16]} O-O {[%emt 0:01:15]} 10. O-O {[%emt 0:00:15]} Bd7 {[%emt 0:00:57]} 11. Qd2 {[%emt 0:03:18] White is more active.} Ne5 {[%emt 0:05:56]} 12. Rac1 {[%emt 0:03:39]} a6 {[%emt 0:04:02] [#]} 13. b4 $146 {[%emt 0:03:26]} (13. Rfd1 $16) ({Predecessor:} 13. Nd5 Nc6 14. Nb3 Be6 15. Bb6 Qd7 16. Bf2 Rad8 17. Rfd1 Kh7 18. Qe1 Ne5 19. Bb6 {0-1 (44) Froeberg,H (2504)-Francia Martinez,S (2000) ICCF email 2002}) 13... Rc8 $14 {[%emt 0:03:26]} 14. Nd5 {[%emt 0:04:58]} Nxd5 {[%emt 0:02:31]} 15. exd5 {[%emt 0:00:18] h3 is the strong threat.} e6 {[%emt 0:04:07]} 16. f4 {[%emt 0:01:29] [#] Strongly threatening dxe6.} Ng4 {[%emt 0:00:50]} 17. Bxg4 {[%emt 0:00:09]} hxg4 {[%emt 0:00:05]} 18. dxe6 {[%emt 0:00:19]} fxe6 {[%emt 0:01:44]} 19. Nb3 $36 {[%emt 0:03:15][%mdl 2048] White has the initiative.} Bc6 {[%emt 0:02:49]} 20. Qe2 {[%emt 0:01:32]} Be4 {[%emt 0:12:53]} 21. Qxg4 {[%emt 0:00:56]} Bf5 {[%emt 0:00:27]} 22. Qe2 {[%emt 0:00:20]} Qh4 {[%emt 0:01:55] Prevents g4.} 23. Nd4 {[%emt 0:05:03]} Bxd4 {[%emt 0:03:53]} (23... Qf6 $16 {was necessary.}) 24. Bxd4 $18 {[%emt 0:00:02]} Rf7 {[%emt 0:00:34]} 25. Ba1 {[%emt 0:08:47]} Rh7 {[%emt 0:03:00]} 26. h3 {[%emt 0:00:15]} Rcc7 {[%emt 0:09:28]} (26... Rd8 $142 27. Rf3 Kf8) 27. Rc3 {[%emt 0:01:37]} Qe7 {[%emt 0:02:47]} (27... b6 $142 28. g4 Bxg4 29. Qxg4 Qxg4+ 30. hxg4 Rh4) 28. g4 {[%emt 1:01:43] Weighted Error Value: White=0.07 (flawless) /Black=0.25 (precise)} 1-0

[Event "15th Arad Open 2022"]
[Site "Arad"]
[Date "2022.08.11"]
[Round "5.8"]
[White "Butolo, Alexandru-Mircea"]
[Black "Padurean, Daniel-Cristian"]
[Result "0-1"]
[ECO "C02"]
[WhiteElo "1863"]
[BlackElo "2126"]
[Annotator "TA"]
[PlyCount "90"]
[EventDate "2022.08.08"]
[EventType "swiss"]
[EventCountry "ROU"]
[SourceTitle "playchess.com"]
[Source "ChessBase"]
[SourceQuality "1"]
[TimeControl "5400+30"]

{[%evp 9,90,48,54,29,30,27,29,14,17,21,14,4,17,-23,0,3,8,0,0,23,10,6,37,-22,0,-29,-22,-16,-22,-66,-63,-79,-79,-101,-102,-107,-105,-101,-100,-147,-144,-164,-165,-187,-195,-191,-194,-202,-192,-198,-176,-164,-154,-258,-252,-350,-344,-779,-650,-829,-819,-741,-727,-675,-637,-1316,-1255,-1384,-1156,-29959,-29960,-5639,-2932,-29974,-29972,-29973,-29974,-29978,-29979,-29979,-29980,-29972,-29971]} 1. e4 {[%emt 0:02:25][%cal Be2e4,Be4e5][%mdl 32]} Nc6 {[%emt 0:00:07]} 2. Nf3 {[%emt 0:00:18]} e6 {[%emt 0:00:05]} 3. d4 {[%emt 0:00:34]} d5 {[%emt 0:00:06]} 4. e5 {[%emt 0:02:24]} f6 {[%emt 0:00:08]} 5. Bd3 {[%emt 0:05:07]} Nb4 {[%emt 0:05:56]} 6. Be2 {[%emt 0:02:01] C02: French: Advance Variation.} c5 {[%emt 0:02:00]} 7. c3 {[%emt 0:00:52]} Nc6 {[%emt 0:00:14]} 8. exf6 {[%emt 0:08:14] White has an edge.} Nxf6 {[%emt 0:00:15]} 9. O-O {[%emt 0:01:07]} Bd6 {[%emt 0:00:43]} 10. Bg5 {[%emt 0:02:41]} O-O {[%emt 0:00:52] [#]} 11. Na3 $146 {[%emt 0:02:16]} ({Predecessor:} 11. Bh4 Qb6 12. Qb3 Ne4 13. dxc5 Qxc5 14. Nbd2 Nf6 15. c4 Kh8 16. cxd5 exd5 17. Rac1 Qa5 18. a3 Bf4 19. Rcd1 Qc5 20. Qb5 Qd6 21. Nb1 Be6 22. Nc3 a6 {½-½ (22) Casper,T (2400)-Seuffert,G (2305) Germany 2004}) 11... Qb6 {[%emt 0:09:56]} 12. Nb5 {[%emt 0:01:10]} Bb8 {[%emt 0:00:09]} 13. dxc5 {[%emt 0:03:08]} Qxc5 {[%emt 0:00:06]} 14. Be3 {[%emt 0:01:39]} Qe7 {[%emt 0:00:06]} 15. c4 $1 {[%emt 0:03:34]} Kh8 {[%emt 0:05:46]} (15... a6 $5 {[%cal Ra6b5]} 16. Nc3 Rd8 17. cxd5 exd5 $11) 16. Qb3 {[%emt 0:04:22]} ({White should play} 16. Rc1 $14) 16... a6 $1 $11 {[%emt 0:07:56]} 17. cxd5 {[%emt 0:00:45]} exd5 {[%emt 0:04:45]} 18. Nbd4 {[%emt 0:00:37]} Ng4 {[%emt 0:07:56]} 19. Nxc6 {[%emt 0:04:24]} bxc6 {[%emt 0:00:14]} 20. Rfc1 {[%emt 0:03:51] White is on the road to losing.} Bd7 {[%emt 0:20:11]} 21. h3 {[%emt 0:07:28]} Nxe3 {[%emt 0:00:48]} 22. Qxe3 {[%emt 0:00:28]} Qxe3 {[%emt 0:00:12]} 23. fxe3 {[%emt 0:00:05]} Ba7 {[%emt 0:00:10]} 24. Kh1 {[%emt 0:01:25]} (24. Nd4 $142) 24... Bxe3 $17 {[%emt 0:00:34]} 25. Rc3 {[%emt 0:00:22]} Rfe8 {[%emt 0:00:44]} 26. Bf1 {[%emt 0:01:19]} a5 {[%emt 0:04:35][%cal Ba6a5,Ba5b4][%mdl 32]} 27. Rd1 {[%emt 0:01:22]} Rab8 {[%emt 0:01:22]} 28. b3 {[%emt 0:00:57]} g6 {[%emt 0:02:55]} 29. Nd4 {[%emt 0:02:10]} Bxd4 {[%emt 0:02:14]} 30. Rxd4 {[%emt 0:00:11]} Rb4 {[%emt 0:01:03]} 31. Rxb4 {[%emt 0:00:46]} (31. Rd2 $17 {is a better defense.}) 31... axb4 {[%emt 0:00:06][%mdl 4096] Endgame KRB-KRB} 32. Rf3 {[%emt 0:00:07]} Kg7 {[%emt 0:00:31] [#] White must now prevent ...Rf8.} 33. Kh2 $2 {[%emt 0:00:28]} (33. Bd3) 33... Rf8 $19 {[%emt 0:00:53]} 34. Rxf8 {[%emt 0:00:50]} Kxf8 {[%emt 0:00:03] KB-KB} 35. Kg3 {[%emt 0:00:47]} Ke7 {[%emt 0:01:26]} 36. Kf4 {[%emt 0:00:04]} Kf6 {[%emt 0:00:04]} 37. h4 {[%emt 0:00:39]} h6 {[%emt 0:00:33][%cal Bh7h6,Bh6g5][%mdl 32]} 38. Ba6 {[%emt 0:00:30]} g5+ {[%emt 0:00:08]} 39. hxg5+ {[%emt 0:00:05]} hxg5+ {[%emt 0:00:05]} 40. Ke3 {[%emt 0:00:00]} Ke5 {[%emt 0:00:00] [#] ( -> ...c5)} 41. g3 {[%emt 0:00:00]} Bf5 {[%emt 0:00:00] Black mates.} 42. Bb7 {[%emt 0:00:00]} c5 {[%emt 0:00:00][%cal Bc6c5,Bc5c4][%mdl 32]} 43. Bc6 {[%emt 0:00:00]} Bb1 {[%emt 0:00:00]} 44. Kd2 {[%emt 0:00:00]} Bxa2 {[%emt 0:00:00]} 45. Kc2 {[%emt 0:00:00]} c4 {[%emt 0:00:00] Weighted Error Value: White=0.71/Black=0.04 (flawless)} 0-1

[Event "15th Arad Open 2022"]
[Site "Arad"]
[Date "2022.08.11"]
[Round "5.9"]
[White "Ionescu, Irina"]
[Black "Tablan, Matei-Christian"]
[Result "0-1"]
[ECO "B20"]
[WhiteElo "2125"]
[BlackElo "1928"]
[Annotator "TA"]
[PlyCount "78"]
[EventDate "2022.08.08"]
[EventType "swiss"]
[EventCountry "ROU"]
[SourceTitle "playchess.com"]
[Source "ChessBase"]
[SourceQuality "1"]
[TimeControl "5400+30"]

{[%evp 12,78,41,40,77,66,61,61,59,24,29,38,27,41,41,39,30,45,53,32,72,64,86,18,62,43,58,58,56,50,79,89,61,10,75,71,69,66,60,30,115,104,95,56,80,58,57,57,57,57,36,15,131,59,65,0,0,0,0,0,0,0,0,-459,-413,-369,-352,-1403,-340]} 1. e4 {[%emt 0:01:52]} c5 {[%emt 0:00:08]} 2. Nf3 {[%emt 0:00:25]} e6 {[%emt 0:00:09]} 3. g3 {[%emt 0:00:30]} Nc6 {[%emt 0:00:47]} 4. Bg2 {[%emt 0:00:07]} Nge7 {[%emt 0:00:45]} 5. O-O {[%emt 0:01:18]} g6 {[%emt 0:04:03]} 6. d4 {[%emt 0:02:38]} cxd4 {[%emt 0:00:25]} 7. Nxd4 {[%emt 0:00:06] Strongly threatening Nb5.} a6 {[%emt 0:00:48] Against Nb5. B20: Sicilian: Unusual White 2nd moves.} 8. Bg5 {[%emt 0:03:17] Hoping for Nxc6.} Bg7 $1 {[%emt 0:00:35]} 9. Nxc6 {[%emt 0:05:32]} bxc6 {[%emt 0:00:37] [#] White is slightly better.} 10. Na3 $146 {[%emt 0:02:57]} ({Predecessor:} 10. Nc3 O-O 11. Qd6 Re8 12. Rad1 f6 13. Be3 Bf8 14. Qf4 Kf7 15. Bd4 Bg7 16. Bxf6 Bxf6 {1-0 (29) Dragnev,V (2458)-Johansson,G (2226) Stockholm 2017}) 10... h6 {[%emt 0:06:04]} 11. Be3 {[%emt 0:02:46]} d5 {[%emt 0:11:40]} 12. Bd4 {[%emt 0:12:32]} O-O {[%emt 0:11:33]} 13. Bxg7 {[%emt 0:03:01]} Kxg7 {[%emt 0:00:04]} 14. Qd4+ {[%emt 0:00:05]} Kh7 {[%emt 0:05:37]} 15. Rad1 {[%emt 0:04:38]} Bb7 {[%emt 0:01:19]} 16. c4 {[%emt 0:02:09]} Qa5 {[%emt 0:04:06]} 17. c5 {[%emt 0:08:04]} (17. Nc2 $16) 17... Qc7 {[%emt 0:20:43]} 18. f4 {[%emt 0:11:46]} f5 {[%emt 0:07:53]} 19. exd5 {[%emt 0:07:09]} exd5 {[%emt 0:00:59]} 20. Rfe1 {[%emt 0:02:36]} Ng8 {[%emt 0:02:00]} 21. Re6 {[%emt 0:04:50]} Rae8 {[%emt 0:02:13]} 22. Rde1 {[%emt 0:00:07]} (22. Rd6 $14) 22... Nf6 {[%emt 0:02:06] [#]} 23. Rxe8 $1 $16 {[%emt 0:05:07]} Rxe8 {[%emt 0:00:05]} 24. Rxe8 {[%emt 0:01:33]} Nxe8 {[%emt 0:00:25]} 25. Qe3 {[%emt 0:12:46]} Ng7 {[%emt 0:01:59]} (25... Nf6 $11) 26. Nc2 {[%emt 0:00:21]} Bc8 {[%emt 0:04:24]} 27. b4 {[%emt 0:00:34]} Ne6 {[%emt 0:11:31]} 28. Nd4 {[%emt 0:01:09]} Nxd4 {[%emt 0:00:49]} 29. Qxd4 $14 {[%emt 0:00:05][%mdl 4096] Endgame KQB-KQB} a5 $1 {[%emt 0:00:37]} 30. b5 {[%emt 0:03:21]} cxb5 {[%emt 0:00:01]} 31. Qxd5 {[%emt 0:00:04]} (31. Bxd5 {seems wilder.} g5 32. fxg5 hxg5 33. Kf2) 31... Qg7 {[%emt 0:00:59]} (31... b4 $11 {remains equal.}) 32. h3 {[%emt 0:00:23]} (32. Qe5 $16) 32... b4 {[%emt 0:00:20]} 33. Qc4 {[%emt 0:02:09]} ({Only move:} 33. Kh2 $1 $14) 33... Qc3 $36 {[%emt 0:00:43][%mdl 2048] Black is pushing.} 34. Qf7+ {[%emt 0:00:16]} Qg7 {[%emt 0:00:04]} 35. Bd5 {[%emt 0:00:58]} Qxf7 {[%emt 0:00:18]} 36. Bxf7 {[%emt 0:00:04]} Kg7 {[%emt 0:00:29]} 37. Be8 {[%emt 0:01:45][%mdl 8192] [#]} (37. Bb3 $1 $11 {and White is okay.}) 37... Kf6 {[%emt 0:01:42]} 38. Kf2 {[%emt 0:00:30]} Be6 {[%emt 0:00:30]} 39. c6 $2 {[%emt 0:00:30]} (39. Ke3 Bxa2 40. Kd3) 39... Ke7 $2 {[%emt 0:00:30] Weighted Error Value: White=0.65/Black=0.24 (precise)} (39... a4 40. Bd7 Bxd7 41. cxd7 Ke7) 0-1

[Event "15th Arad Open 2022"]
[Site "Arad"]
[Date "2022.08.11"]
[Round "5.10"]
[White "Kazarian, Anna-Maja"]
[Black "Panc, Samuel"]
[Result "1-0"]
[ECO "B30"]
[WhiteElo "2139"]
[BlackElo "1927"]
[Annotator "TA"]
[PlyCount "49"]
[EventDate "2022.08.08"]
[EventType "swiss"]
[EventCountry "ROU"]
[SourceTitle "playchess.com"]
[Source "ChessBase"]
[SourceQuality "1"]
[TimeControl "5400+30"]

{[%evp 9,49,7,5,0,0,0,9,10,14,0,11,20,37,26,22,23,60,52,52,43,79,34,48,-29,368,96,96,95,96,95,370,379,374,358,498,372,376,371,497,498,510,497]} 1. e4 {[%emt 0:00:02]} c5 {[%emt 0:00:08]} 2. Nc3 {[%emt 0:00:11]} Nc6 {[%emt 0:00:24]} 3. Bb5 {[%emt 0:00:26]} Nd4 {[%emt 0:00:46]} 4. Bc4 {[%emt 0:00:05]} e6 {[%emt 0:00:36]} 5. Nf3 {[%emt 0:00:28]} a6 {[%emt 0:02:40]} 6. Nxd4 {[%emt 0:01:32] B30: Sicilian: 2...Nc6 3 Bb5, lines without ...g6.} cxd4 {[%emt 0:00:05]} 7. Ne2 {[%emt 0:00:06]} b5 {[%emt 0:02:31] 7...b5 has become a bit dusty these days.} 8. Bb3 {[%emt 0:00:16] The position is equal.} Bc5 {[%emt 0:03:27]} 9. d3 {[%emt 0:04:12]} Bb7 {[%emt 0:02:18]} 10. O-O {[%emt 0:00:15]} Nf6 {[%emt 0:03:44]} 11. Bg5 {[%emt 0:07:26]} h6 {[%emt 0:01:41]} 12. Bh4 {[%emt 0:00:27]} g5 {[%emt 0:03:04]} 13. Bg3 {[%emt 0:00:08]} d6 {[%emt 0:01:31] [#] Prevents Be5.} 14. h3 $146 {[%emt 0:16:01]} ({Predecessor:} 14. f4 Ng4 15. Qe1 Ne3 16. Rf3 f5 17. Bxe6 fxe4 18. Rxe3 dxe3 19. Qc3 Rf8 20. d4 {1-0 (36) Vlachos,A (2156)-Serpetsidakis,N (1983) Porto Rio 2016}) 14... Rg8 {[%emt 0:03:11]} 15. f4 {[%emt 0:10:17]} gxf4 {[%emt 0:14:45]} 16. Bh4 {[%emt 0:06:24] [#]} (16. Rxf4 Nxe4 $1 17. dxe4 (17. Rxe4 $2 Bxe4 18. dxe4 d3+ 19. Kh2 dxe2 $19) 17... d3+ 18. Kh2 dxe2 $11) ({White should play} 16. Bxf4 $14 Nxe4 17. dxe4 d3+ 18. Kh1 dxe2 19. Qxe2) 16... Bxe4 $2 {[%emt 0:08:15][%mdl 8192]} (16... Nxe4 $1 $11 17. Rxf4 (17. Bxd8 Nc3 $17) 17... Ng5) 17. dxe4 $2 {[%emt 0:09:35]} (17. Nxf4 $18 {and the rest is easy.} Bc6 18. Rf2) 17... d3+ $16 {[%emt 0:01:30]} 18. Kh1 {[%emt 0:07:00]} dxe2 {[%emt 0:00:11]} 19. Qxe2 {[%emt 0:00:03]} Be3 {[%emt 0:07:02][%mdl 8192]} (19... e5 $16 {was worth a try.}) 20. Bxf6 $18 {[%emt 0:02:22]} Qxf6 {[%emt 0:01:35]} 21. Qxe3 $1 {[%emt 0:00:05][%mdl 64] Pin} Rxg2 {[%emt 0:02:25]} 22. Qxf4 {[%emt 0:02:42]} ({Less strong is} 22. Qb6 f3 23. Rf2 (23. Qxd6 Rd8 $11) (23. Qc6+ Kf8 $16) 23... Rxf2 24. Qxf2 Qxb2 $16) 22... Qxf4 {[%emt 0:00:11]} 23. Rxf4 {[%emt 0:00:04]} Re2 {[%emt 0:00:44]} 24. Raf1 {[%emt 0:01:56][%cal Ob3e6] Bxe6! is the strong threat.} Ra7 {[%emt 0:00:42] [#]} 25. Bxe6 $1 {[%emt 0:00:56][%mdl 512] Weighted Error Value: White=0.44/Black=0.71} 1-0